[Event "Titled Tuesday Blitz February 22 Late 2022"]
[White "Vusatiuk, Vladimir"]
[Black "Golubenko, Valentina"]
[WhiteFideId "14118610"]
[BlackFideId "4501993"]
[WhiteElo "2157"]
[BlackElo "2164"]
[Result "1-0"]
[Round "10"]
[TimeControl "180+1"]
[Date "2022.02.23"]
[WhiteClock "0:00:15"]
[BlackClock "0:00:01"]

1. Nf3 {[%clk 0:03:00]}  Nf6 {[%clk 0:02:59]} 2. h4 {[%clk 0:03:01]}  h5 {[%clk 0:02:58]} 3. a4 {[%clk 0:03:00]}  d5 {[%clk 0:02:58]} 4. a5 {[%clk 0:03:00]}  Nc6 {[%clk 0:02:59]} 5. e3 {[%clk 0:02:56]}  e5 {[%clk 0:02:58]} 6. a6 {[%clk 0:02:55]}  b6 {[%clk 0:02:57]} 7. Bb5 {[%clk 0:02:54]}  Bd7 {[%clk 0:02:57]} 8. Bxc6 {[%clk 0:02:55]}  Bxc6 {[%clk 0:02:58]} 9. Nxe5 {[%clk 0:02:55]}  Bd7 {[%clk 0:02:57]} 10. Nxd7 {[%clk 0:02:46]}  Qxd7 {[%clk 0:02:57]} 11. d3 {[%clk 0:02:39]}  Bd6 {[%clk 0:02:55]} 12. Nd2 {[%clk 0:02:35]}  O-O {[%clk 0:02:51]} 13. Nf3 {[%clk 0:02:34]}  c5 {[%clk 0:02:50]} 14. b3 {[%clk 0:02:32]}  Rfe8 {[%clk 0:02:48]} 15. Bb2 {[%clk 0:02:31]}  d4 {[%clk 0:02:44]} 16. e4 {[%clk 0:02:23]}  Ng4 {[%clk 0:02:44]} 17. O-O {[%clk 0:02:07]}  Qc7 {[%clk 0:02:30]} 18. Bc1 {[%clk 0:01:53]}  Re6 {[%clk 0:02:21]} 19. Ng5 {[%clk 0:01:27]}  Be7 {[%clk 0:01:42]} 20. g3 {[%clk 0:01:20]}  Rg6 {[%clk 0:01:28]} 21. Kg2 {[%clk 0:00:52]}  f6 {[%clk 0:01:20]} 22. Ne6 {[%clk 0:00:52]}  Qd6 {[%clk 0:01:06]} 23. Nf4 {[%clk 0:00:51]}  Rh6 {[%clk 0:01:06]} 24. Nxh5 {[%clk 0:00:43]}  Rg6 {[%clk 0:00:26]} 25. Nf4 {[%clk 0:00:38]}  Rh6 {[%clk 0:00:25]} 26. Nd5 {[%clk 0:00:38]}  Rg6 {[%clk 0:00:21]} 27. h5 {[%clk 0:00:29]}  Nxf2 {[%clk 0:00:21]} 28. Qf3 {[%clk 0:00:15]}  Rg4 {[%clk 0:00:03]} 29. Rxf2 {[%clk 0:00:15]}  Qe6 {[%clk 0:00:02]} 30. Nxe7+ {[%clk 0:00:15]}  Kf7 {[%clk 0:00:02]} 31. Nf5 {[%clk 0:00:15]}  Rg5 {[%clk 0:00:01]} 32. Bxg5 {[%clk 0:00:15]} 1-0


[Site "https://www.chess.com"]

[Event "Titled Tuesday Blitz February 22 Late 2022"]
[White "Willathgamuwa, Kevin"]
[Black "Sliwicki, Damian"]
[WhiteFideId "3214168"]
[BlackFideId "1127128"]
[WhiteElo "1943"]
[BlackElo "2084"]
[Result "1-0"]
[Round "10"]
[TimeControl "180+1"]
[Date "2022.02.23"]
[WhiteClock "0:00:18"]
[BlackClock "0:00:16"]

1. e4 {[%clk 0:03:00]}  d5 {[%clk 0:02:59]} 2. Nc3 {[%clk 0:03:00]}  dxe4 {[%clk 0:02:58]} 3. Nxe4 {[%clk 0:03:01]}  e5 {[%clk 0:02:57]} 4. Nf3 {[%clk 0:02:58]}  Nc6 {[%clk 0:02:56]} 5. Bb5 {[%clk 0:02:58]}  Bd7 {[%clk 0:02:43]} 6. O-O {[%clk 0:02:43]}  Nf6 {[%clk 0:02:33]} 7. Qe2 {[%clk 0:02:35]}  Be7 {[%clk 0:02:22]} 8. Nxf6+ {[%clk 0:01:55]}  Bxf6 {[%clk 0:02:20]} 9. Bxc6 {[%clk 0:01:52]}  Bxc6 {[%clk 0:02:17]} 10. Nxe5 {[%clk 0:01:52]}  O-O {[%clk 0:02:09]} 11. Nxc6 {[%clk 0:01:51]}  bxc6 {[%clk 0:02:10]} 12. c3 {[%clk 0:01:51]}  c5 {[%clk 0:02:06]} 13. d3 {[%clk 0:01:47]}  Rb8 {[%clk 0:02:05]} 14. Be3 {[%clk 0:01:46]}  Qd5 {[%clk 0:02:00]} 15. Rfd1 {[%clk 0:01:35]}  Rfe8 {[%clk 0:01:54]} 16. Rd2 {[%clk 0:01:27]}  h6 {[%clk 0:01:51]} 17. Qg4 {[%clk 0:01:19]}  Re6 {[%clk 0:01:25]} 18. Qc4 {[%clk 0:01:04]}  Qh5 {[%clk 0:01:09]} 19. Qxc5 {[%clk 0:00:55]}  Be5 {[%clk 0:00:59]} 20. f4 {[%clk 0:00:43]}  Rbe8 {[%clk 0:00:46]} 21. Bf2 {[%clk 0:00:24]}  Bd4 {[%clk 0:00:16]} 22. Qxd4 {[%clk 0:00:16]}  Qg4 {[%clk 0:00:16]} 23. Rf1 {[%clk 0:00:14]}  Rg6 {[%clk 0:00:16]} 24. Bg3 {[%clk 0:00:13]}  h5 {[%clk 0:00:16]} 25. f5 {[%clk 0:00:11]}  Qxd4+ {[%clk 0:00:04]} 26. cxd4 {[%clk 0:00:12]}  Rf6 {[%clk 0:00:02]} 27. Bxc7 {[%clk 0:00:08]}  Rc8 {[%clk 0:00:01]} 28. Be5 {[%clk 0:00:08]}  Rfc6 {[%clk 0:00:02]} 29. d5 {[%clk 0:00:08]}  Rc5 {[%clk 0:00:03]} 30. Bc3 {[%clk 0:00:06]}  Rxd5 {[%clk 0:00:03]} 31. f6 {[%clk 0:00:06]}  g6 {[%clk 0:00:03]} 32. Re1 {[%clk 0:00:06]}  Rcd8 {[%clk 0:00:03]} 33. Re5 {[%clk 0:00:06]}  R5d6 {[%clk 0:00:03]} 34. Re7 {[%clk 0:00:04]}  a6 {[%clk 0:00:03]} 35. d4 {[%clk 0:00:04]}  Kf8 {[%clk 0:00:03]} 36. Rf2 {[%clk 0:00:04]}  a5 {[%clk 0:00:03]} 37. Ra7 {[%clk 0:00:04]}  Rd5 {[%clk 0:00:02]} 38. Rxa5 {[%clk 0:00:04]}  R5d7 {[%clk 0:00:02]} 39. Bb4+ {[%clk 0:00:04]}  Kg8 {[%clk 0:00:03]} 40. Be7 {[%clk 0:00:05]}  Rc8 {[%clk 0:00:03]} 41. Bc5 {[%clk 0:00:04]}  Rd5 {[%clk 0:00:03]} 42. Re2 {[%clk 0:00:05]}  Rf5 {[%clk 0:00:02]} 43. Ra7 {[%clk 0:00:05]}  Rb8 {[%clk 0:00:02]} 44. Rae7 {[%clk 0:00:05]}  Rd5 {[%clk 0:00:01]} 45. Re8+ {[%clk 0:00:06]}  Rxe8 {[%clk 0:00:01]} 46. Rxe8+ {[%clk 0:00:07]}  Kh7 {[%clk 0:00:02]} 47. Bf8 {[%clk 0:00:07]}  g5 {[%clk 0:00:02]} 48. Bg7 {[%clk 0:00:08]}  Kg6 {[%clk 0:00:03]} 49. Rh8 {[%clk 0:00:08]}  Kf5 {[%clk 0:00:03]} 50. Rh6 {[%clk 0:00:09]}  Kg4 {[%clk 0:00:03]} 51. h3+ {[%clk 0:00:08]}  Kg3 {[%clk 0:00:04]} 52. Rxh5 {[%clk 0:00:08]}  Rxd4 {[%clk 0:00:04]} 53. Rxg5+ {[%clk 0:00:08]}  Kf4 {[%clk 0:00:05]} 54. Rg4+ {[%clk 0:00:09]}  Ke3 {[%clk 0:00:05]} 55. Rxd4 {[%clk 0:00:09]}  Kxd4 {[%clk 0:00:06]} 56. h4 {[%clk 0:00:10]}  Ke5 {[%clk 0:00:07]} 57. h5 {[%clk 0:00:11]}  Kf5 {[%clk 0:00:08]} 58. h6 {[%clk 0:00:12]}  Kg6 {[%clk 0:00:09]} 59. g4 {[%clk 0:00:12]}  Kh7 {[%clk 0:00:10]} 60. g5 {[%clk 0:00:13]}  Kg6 {[%clk 0:00:10]} 61. a4 {[%clk 0:00:14]}  Kh7 {[%clk 0:00:11]} 62. a5 {[%clk 0:00:14]}  Kg8 {[%clk 0:00:12]} 63. a6 {[%clk 0:00:15]}  Kh7 {[%clk 0:00:13]} 64. a7 {[%clk 0:00:16]}  Kg6 {[%clk 0:00:14]} 65. a8=Q {[%clk 0:00:17]}  Kh7 {[%clk 0:00:15]} 66. Qe4+ {[%clk 0:00:17]}  Kg8 {[%clk 0:00:16]} 67. h7# {[%clk 0:00:18]} 1-0


[Site "https://www.chess.com"]

[Event "Titled Tuesday Blitz February 22 Late 2022"]
[White "Yordanov, Nikolay Plamenov"]
[Black "Carlsson, Ludvig"]
[WhiteFideId "2907445"]
[BlackFideId "1727010"]
[WhiteElo "2248"]
[BlackElo "2178"]
[Result "0-1"]
[Round "10"]
[TimeControl "180+1"]
[Date "2022.02.22"]
[WhiteClock "0:00:02"]
[BlackClock "0:00:52"]

1. d4 {[%clk 0:03:00]}  d5 {[%clk 0:02:57]} 2. Bf4 {[%clk 0:03:01]}  c6 {[%clk 0:02:57]} 3. e3 {[%clk 0:03:01]}  Qb6 {[%clk 0:02:57]} 4. b3 {[%clk 0:03:00]}  Nf6 {[%clk 0:02:57]} 5. Nf3 {[%clk 0:03:01]}  Bg4 {[%clk 0:02:57]} 6. Be2 {[%clk 0:02:58]}  Nbd7 {[%clk 0:02:57]} 7. O-O {[%clk 0:02:58]}  e6 {[%clk 0:02:58]} 8. h3 {[%clk 0:02:58]}  Bh5 {[%clk 0:02:58]} 9. c4 {[%clk 0:02:59]}  Be7 {[%clk 0:02:58]} 10. Nc3 {[%clk 0:02:59]}  O-O {[%clk 0:02:58]} 11. c5 {[%clk 0:02:50]}  Qa5 {[%clk 0:02:58]} 12. Qd2 {[%clk 0:02:37]}  Rfe8 {[%clk 0:02:41]} 13. a3 {[%clk 0:02:36]}  Bf8 {[%clk 0:02:35]} 14. b4 {[%clk 0:02:36]}  Qd8 {[%clk 0:02:34]} 15. b5 {[%clk 0:02:10]}  Ne4 {[%clk 0:02:23]} 16. Nxe4 {[%clk 0:02:06]}  dxe4 {[%clk 0:02:23]} 17. Ne5 {[%clk 0:02:04]}  Bxe2 {[%clk 0:02:18]} 18. Qxe2 {[%clk 0:02:05]}  Nxe5 {[%clk 0:02:14]} 19. Bxe5 {[%clk 0:02:06]}  Qd5 {[%clk 0:02:11]} 20. Rfb1 {[%clk 0:01:59]}  f6 {[%clk 0:01:55]} 21. Bg3 {[%clk 0:01:58]}  e5 {[%clk 0:01:54]} 22. dxe5 {[%clk 0:01:51]}  fxe5 {[%clk 0:01:55]} 23. bxc6 {[%clk 0:01:52]}  bxc6 {[%clk 0:01:51]} 24. Rb7 {[%clk 0:01:43]}  Re7 {[%clk 0:01:45]} 25. Rb4 {[%clk 0:01:12]}  Rd7 {[%clk 0:01:41]} 26. Qg4 {[%clk 0:01:07]}  Bxc5 {[%clk 0:01:38]} 27. Rxe4 {[%clk 0:01:07]}  Re8 {[%clk 0:01:33]} 28. Kh2 {[%clk 0:01:05]}  Bf8 {[%clk 0:01:31]} 29. Rc1 {[%clk 0:00:53]}  Bxa3 {[%clk 0:01:27]} 30. Rb1 {[%clk 0:00:45]}  Bc5 {[%clk 0:01:14]} 31. Qf5 {[%clk 0:00:36]}  Rf7 {[%clk 0:01:07]} 32. Qg4 {[%clk 0:00:32]}  h5 {[%clk 0:01:04]} 33. Qg6 {[%clk 0:00:27]}  Re6 {[%clk 0:00:57]} 34. Rb8+ {[%clk 0:00:26]}  Bf8 {[%clk 0:00:57]} 35. Qxh5 {[%clk 0:00:02]}  Qxe4 {[%clk 0:00:55]} 36. Bh4 {[%clk 0:00:02]}  Rh6 {[%clk 0:00:52]} 0-1


[Site "https://www.chess.com"]

[Event "Titled Tuesday Blitz February 22 Late 2022"]
[White "Zeynalli, Rashad"]
[Black "Novikov, Evgenij"]
[WhiteFideId "13403320"]
[BlackFideId "4125380"]
[WhiteElo "2125"]
[BlackElo "2242"]
[Result "1-0"]
[Round "10"]
[TimeControl "180+1"]
[Date "2022.02.23"]
[WhiteClock "0:00:59"]
[BlackClock "0:00:03"]

1. e4 {[%clk 0:03:00]}  c6 {[%clk 0:02:53]} 2. d4 {[%clk 0:03:00]}  d6 {[%clk 0:02:54]} 3. Nc3 {[%clk 0:03:00]}  g6 {[%clk 0:02:53]} 4. Be3 {[%clk 0:02:57]}  b5 {[%clk 0:02:53]} 5. Qd2 {[%clk 0:02:52]}  Nf6 {[%clk 0:02:44]} 6. f3 {[%clk 0:02:51]}  a5 {[%clk 0:02:30]} 7. O-O-O {[%clk 0:02:48]}  Ba6 {[%clk 0:02:27]} 8. e5 {[%clk 0:02:45]}  Nd5 {[%clk 0:02:04]} 9. Nxd5 {[%clk 0:02:36]}  cxd5 {[%clk 0:02:03]} 10. exd6 {[%clk 0:02:36]}  e6 {[%clk 0:01:53]} 11. Bg5 {[%clk 0:02:24]}  f6 {[%clk 0:01:42]} 12. Bf4 {[%clk 0:02:24]}  b4 {[%clk 0:01:29]} 13. Qe3 {[%clk 0:02:10]}  Kf7 {[%clk 0:01:22]} 14. Re1 {[%clk 0:02:09]}  Bc8 {[%clk 0:01:14]} 15. h4 {[%clk 0:02:03]}  Bxd6 {[%clk 0:01:07]} 16. Nh3 {[%clk 0:01:56]}  Re8 {[%clk 0:00:55]} 17. Bxd6 {[%clk 0:01:53]}  Qxd6 {[%clk 0:00:54]} 18. Qh6 {[%clk 0:01:53]}  Kg8 {[%clk 0:00:51]} 19. h5 {[%clk 0:01:53]}  Qf8 {[%clk 0:00:47]} 20. Qxf8+ {[%clk 0:01:41]}  Kxf8 {[%clk 0:00:16]} 21. hxg6 {[%clk 0:01:42]}  hxg6 {[%clk 0:00:16]} 22. Nf4 {[%clk 0:01:42]}  Kg7 {[%clk 0:00:09]} 23. Bb5 {[%clk 0:01:41]}  Bd7 {[%clk 0:00:05]} 24. Bxd7 {[%clk 0:01:39]}  Nxd7 {[%clk 0:00:06]} 25. Nxe6+ {[%clk 0:01:38]}  Kg8 {[%clk 0:00:05]} 26. Nf4 {[%clk 0:01:38]}  Kg7 {[%clk 0:00:02]} 27. Nxd5 {[%clk 0:01:36]}  Rac8 {[%clk 0:00:02]} 28. Kd2 {[%clk 0:01:31]}  Nf8 {[%clk 0:00:02]} 29. Rxe8 {[%clk 0:01:28]}  Rxe8 {[%clk 0:00:03]} 30. Re1 {[%clk 0:01:27]}  Rd8 {[%clk 0:00:03]} 31. Re7+ {[%clk 0:01:25]}  Kh6 {[%clk 0:00:03]} 32. Nxf6 {[%clk 0:01:23]}  Rxd4+ {[%clk 0:00:04]} 33. Ke3 {[%clk 0:01:22]}  Rc4 {[%clk 0:00:04]} 34. Ng4+ {[%clk 0:01:16]}  Kg5 {[%clk 0:00:04]} 35. g3 {[%clk 0:01:08]}  Rc5 {[%clk 0:00:03]} 36. Re5+ {[%clk 0:01:01]}  Rxe5+ {[%clk 0:00:03]} 37. Nxe5 {[%clk 0:01:02]}  Ne6 {[%clk 0:00:02]} 38. Nc6 {[%clk 0:01:02]}  a4 {[%clk 0:00:02]} 39. Nxb4 {[%clk 0:01:01]}  Nc5 {[%clk 0:00:03]} 40. Nd3 {[%clk 0:01:00]}  a3 {[%clk 0:00:03]} 41. Nxc5 {[%clk 0:00:58]}  axb2 {[%clk 0:00:02]} 42. Ne4+ {[%clk 0:00:58]}  Kf5 {[%clk 0:00:03]} 43. Nc3 {[%clk 0:00:59]} 1-0


[Site "https://www.chess.com"]

[Event "Titled Tuesday Blitz February 22 Late 2022"]
[White "Zlatin, Alexander"]
[Black "Salimova, Nurgyul"]
[WhiteFideId "2810549"]
[BlackFideId "2915138"]
[WhiteElo "2228"]
[BlackElo "2185"]
[Result "0-1"]
[Round "10"]
[TimeControl "180+1"]
[Date "2022.02.23"]
[WhiteClock "0:00:03"]
[BlackClock "0:01:55"]

1. e4 {[%clk 0:02:52]}  c5 {[%clk 0:02:59]} 2. Nf3 {[%clk 0:02:51]}  Nc6 {[%clk 0:02:59]} 3. d4 {[%clk 0:02:51]}  cxd4 {[%clk 0:02:59]} 4. Nxd4 {[%clk 0:02:51]}  Nf6 {[%clk 0:02:59]} 5. Nc3 {[%clk 0:02:51]}  e5 {[%clk 0:02:56]} 6. Ndb5 {[%clk 0:02:52]}  d6 {[%clk 0:02:55]} 7. Bg5 {[%clk 0:02:52]}  a6 {[%clk 0:02:56]} 8. Na3 {[%clk 0:02:52]}  b5 {[%clk 0:02:56]} 9. Nd5 {[%clk 0:02:53]}  Be7 {[%clk 0:02:56]} 10. Bxf6 {[%clk 0:02:53]}  Bxf6 {[%clk 0:02:57]} 11. c3 {[%clk 0:02:53]}  O-O {[%clk 0:02:55]} 12. Nc2 {[%clk 0:02:54]}  Bg5 {[%clk 0:02:56]} 13. a4 {[%clk 0:02:54]}  bxa4 {[%clk 0:02:54]} 14. Rxa4 {[%clk 0:02:55]}  a5 {[%clk 0:02:50]} 15. Bc4 {[%clk 0:02:55]}  Bd7 {[%clk 0:02:49]} 16. O-O {[%clk 0:02:52]}  Rb8 {[%clk 0:02:46]} 17. b3 {[%clk 0:02:52]}  Kh8 {[%clk 0:02:45]} 18. Nce3 {[%clk 0:02:44]}  g6 {[%clk 0:02:43]} 19. Ra2 {[%clk 0:02:40]}  f5 {[%clk 0:02:40]} 20. exf5 {[%clk 0:02:39]}  gxf5 {[%clk 0:02:40]} 21. f4 {[%clk 0:01:23]}  exf4 {[%clk 0:02:39]} 22. Nxf4 {[%clk 0:01:24]}  Qb6 {[%clk 0:02:39]} 23. Re2 {[%clk 0:01:20]}  Rbe8 {[%clk 0:02:38]} 24. Qd3 {[%clk 0:00:43]}  Re4 {[%clk 0:02:35]} 25. Nd5 {[%clk 0:00:33]}  Qc5 {[%clk 0:02:20]} 26. Kh1 {[%clk 0:00:32]}  Ne5 {[%clk 0:02:15]} 27. Qc2 {[%clk 0:00:32]}  Bxe3 {[%clk 0:02:13]} 28. Qxe4 {[%clk 0:00:25]}  fxe4 {[%clk 0:02:10]} 29. Rxf8+ {[%clk 0:00:25]}  Kg7 {[%clk 0:02:10]} 30. Rd8 {[%clk 0:00:20]}  Bg5 {[%clk 0:02:02]} 31. Rb8 {[%clk 0:00:15]}  Nxc4 {[%clk 0:02:01]} 32. bxc4 {[%clk 0:00:16]}  Qxc4 {[%clk 0:02:01]} 33. Re1 {[%clk 0:00:07]}  Qxd5 {[%clk 0:02:00]} 34. Rbb1 {[%clk 0:00:07]}  Bd2 {[%clk 0:01:58]} 35. Rf1 {[%clk 0:00:05]}  e3 {[%clk 0:01:57]} 36. Rf4 {[%clk 0:00:03]}  e2 {[%clk 0:01:55]} 0-1


[Site "https://www.chess.com"]

[Event "Titled Tuesday Blitz February 22 Late 2022"]
[White "Andreikin, Dmitry"]
[Black "Gupta, Abhijeet"]
[WhiteFideId "4158814"]
[BlackFideId "5010608"]
[WhiteElo "2736"]
[BlackElo "2549"]
[Result "1-0"]
[Round "11"]
[TimeControl "180+1"]
[Date "2022.02.22"]
[WhiteClock "0:00:04"]
[BlackClock "0:00:10"]

1. d4 {[%clk 0:03:00]}  d5 {[%clk 0:02:53]} 2. c4 {[%clk 0:03:00]}  Nc6 {[%clk 0:02:52]} 3. Nf3 {[%clk 0:02:58]}  Bg4 {[%clk 0:02:51]} 4. cxd5 {[%clk 0:02:48]}  Bxf3 {[%clk 0:02:51]} 5. gxf3 {[%clk 0:02:49]}  Qxd5 {[%clk 0:02:51]} 6. e3 {[%clk 0:02:49]}  e5 {[%clk 0:02:51]} 7. Nc3 {[%clk 0:02:49]}  Bb4 {[%clk 0:02:52]} 8. Bd2 {[%clk 0:02:48]}  Bxc3 {[%clk 0:02:51]} 9. bxc3 {[%clk 0:02:49]}  Nge7 {[%clk 0:02:47]} 10. Bg2 {[%clk 0:02:47]}  Qd6 {[%clk 0:02:43]} 11. f4 {[%clk 0:02:42]}  exf4 {[%clk 0:02:40]} 12. e4 {[%clk 0:02:42]}  O-O {[%clk 0:02:37]} 13. Qf3 {[%clk 0:02:33]}  Ng6 {[%clk 0:02:36]} 14. h4 {[%clk 0:02:33]}  Rad8 {[%clk 0:02:08]} 15. Rd1 {[%clk 0:02:29]}  Nge5 {[%clk 0:01:58]} 16. Qh3 {[%clk 0:02:09]}  Nc4 {[%clk 0:01:50]} 17. Bc1 {[%clk 0:02:04]}  f5 {[%clk 0:01:45]} 18. O-O {[%clk 0:01:32]}  fxe4 {[%clk 0:01:32]} 19. Bxe4 {[%clk 0:01:33]}  Rde8 {[%clk 0:01:30]} 20. Bf3 {[%clk 0:01:24]}  Ne7 {[%clk 0:01:22]} 21. Kh2 {[%clk 0:01:17]}  Nd5 {[%clk 0:01:21]} 22. Rg1 {[%clk 0:01:16]}  Nxc3 {[%clk 0:01:09]} 23. Rd3 {[%clk 0:01:04]}  Ne2 {[%clk 0:01:04]} 24. Rg5 {[%clk 0:00:31]}  Nxc1 {[%clk 0:00:54]} 25. Rc3 {[%clk 0:00:30]}  b5 {[%clk 0:00:26]} 26. Rxc1 {[%clk 0:00:27]}  Qxd4 {[%clk 0:00:25]} 27. Rcg1 {[%clk 0:00:25]}  Re7 {[%clk 0:00:23]} 28. Rxb5 {[%clk 0:00:21]}  Qxf2+ {[%clk 0:00:21]} 29. Rg2 {[%clk 0:00:21]}  Qd4 {[%clk 0:00:16]} 30. Rb4 {[%clk 0:00:17]}  Kh8 {[%clk 0:00:15]} 31. Rc2 {[%clk 0:00:15]}  Rfe8 {[%clk 0:00:13]} 32. Rbxc4 {[%clk 0:00:14]}  Qd3 {[%clk 0:00:12]} 33. R4c3 {[%clk 0:00:09]}  Qd4 {[%clk 0:00:10]} 34. Qg2 {[%clk 0:00:08]}  Qf6 {[%clk 0:00:08]} 35. Qg5 {[%clk 0:00:07]}  Qxg5 {[%clk 0:00:07]} 36. hxg5 {[%clk 0:00:07]}  Re5 {[%clk 0:00:08]} 37. Rc5 {[%clk 0:00:06]}  Re3 {[%clk 0:00:08]} 38. Kg2 {[%clk 0:00:05]}  R8e5 {[%clk 0:00:06]} 39. Rxe5 {[%clk 0:00:03]}  Rxe5 {[%clk 0:00:07]} 40. Rxc7 {[%clk 0:00:03]}  Rxg5+ {[%clk 0:00:08]} 41. Kf2 {[%clk 0:00:04]}  h5 {[%clk 0:00:07]} 42. Rxa7 {[%clk 0:00:05]}  Kh7 {[%clk 0:00:08]} 43. a4 {[%clk 0:00:04]}  Kh6 {[%clk 0:00:08]} 44. a5 {[%clk 0:00:05]}  g6 {[%clk 0:00:09]} 45. a6 {[%clk 0:00:05]}  Ra5 {[%clk 0:00:10]} 46. Ra8 {[%clk 0:00:05]}  g5 {[%clk 0:00:10]} 47. a7 {[%clk 0:00:04]}  Kg7 {[%clk 0:00:10]} 48. Bxh5 {[%clk 0:00:05]}  Ra2+ {[%clk 0:00:09]} 49. Kf3 {[%clk 0:00:05]}  Ra3+ {[%clk 0:00:10]} 50. Ke4 {[%clk 0:00:05]}  Ra4+ {[%clk 0:00:10]} 51. Kf5 {[%clk 0:00:05]}  Ra5+ {[%clk 0:00:11]} 52. Kg4 {[%clk 0:00:06]}  Kh7 {[%clk 0:00:11]} 53. Be8 {[%clk 0:00:05]}  Kg7 {[%clk 0:00:12]} 54. Bd7 {[%clk 0:00:05]}  Kh7 {[%clk 0:00:10]} 55. Bf5+ {[%clk 0:00:05]}  Kg7 {[%clk 0:00:10]} 56. Be4 {[%clk 0:00:06]}  Ra4 {[%clk 0:00:10]} 57. Kxg5 {[%clk 0:00:06]}  Rxe4 {[%clk 0:00:10]} 58. Rg8+ {[%clk 0:00:04]} 1-0


[Site "https://www.chess.com"]

[Event "Titled Tuesday Blitz February 22 Late 2022"]
[White "Bauer, Thomas"]
[Black "Kohler, Aran"]
[WhiteFideId "1639293"]
[BlackFideId "1002856"]
[WhiteElo "2220"]
[BlackElo "2251"]
[Result "1-0"]
[Round "11"]
[TimeControl "180+1"]
[Date "2022.02.23"]
[WhiteClock "0:00:17"]
[BlackClock "0:00:15"]

1. e4 {[%clk 0:02:57]}  c5 {[%clk 0:02:57]} 2. b3 {[%clk 0:02:49]}  Nc6 {[%clk 0:02:56]} 3. Bb2 {[%clk 0:02:49]}  e6 {[%clk 0:02:54]} 4. Nf3 {[%clk 0:02:40]}  d5 {[%clk 0:02:51]} 5. exd5 {[%clk 0:02:40]}  exd5 {[%clk 0:02:51]} 6. Bb5 {[%clk 0:02:40]}  Qe7+ {[%clk 0:02:35]} 7. Qe2 {[%clk 0:02:39]}  Qxe2+ {[%clk 0:02:33]} 8. Kxe2 {[%clk 0:02:39]}  Be6 {[%clk 0:02:23]} 9. d4 {[%clk 0:02:36]}  Nf6 {[%clk 0:02:19]} 10. dxc5 {[%clk 0:02:36]}  Bxc5 {[%clk 0:02:18]} 11. Ba3 {[%clk 0:02:27]}  Bxa3 {[%clk 0:02:07]} 12. Nxa3 {[%clk 0:02:28]}  O-O {[%clk 0:02:06]} 13. c3 {[%clk 0:02:21]}  Rfe8 {[%clk 0:02:03]} 14. Rhd1 {[%clk 0:02:06]}  Ne4 {[%clk 0:02:01]} 15. Rac1 {[%clk 0:02:02]}  a6 {[%clk 0:01:52]} 16. Bd3 {[%clk 0:02:00]}  Bg4 {[%clk 0:01:49]} 17. Kf1 {[%clk 0:01:59]}  Bxf3 {[%clk 0:01:48]} 18. gxf3 {[%clk 0:01:59]}  Nf6 {[%clk 0:01:41]} 19. Rd2 {[%clk 0:01:55]}  Re5 {[%clk 0:01:41]} 20. Rcd1 {[%clk 0:01:55]}  Rae8 {[%clk 0:01:38]} 21. Nc2 {[%clk 0:01:53]}  Rh5 {[%clk 0:01:32]} 22. Kg2 {[%clk 0:01:53]}  Rg5+ {[%clk 0:01:26]} 23. Kh1 {[%clk 0:01:51]}  Nh5 {[%clk 0:01:23]} 24. Ne3 {[%clk 0:01:43]}  Nf4 {[%clk 0:01:21]} 25. Bf5 {[%clk 0:01:29]}  g6 {[%clk 0:01:15]} 26. Bg4 {[%clk 0:01:19]}  h5 {[%clk 0:01:06]} 27. h4 {[%clk 0:01:17]}  Rge5 {[%clk 0:01:03]} 28. Bd7 {[%clk 0:01:17]}  Rd8 {[%clk 0:01:00]} 29. Nxd5 {[%clk 0:01:14]}  Nxd5 {[%clk 0:00:56]} 30. Rxd5 {[%clk 0:01:14]}  Rxd5 {[%clk 0:00:54]} 31. Rxd5 {[%clk 0:01:13]}  Ne7 {[%clk 0:00:39]} 32. Rd4 {[%clk 0:01:13]}  Kg7 {[%clk 0:00:31]} 33. b4 {[%clk 0:00:57]}  b5 {[%clk 0:00:28]} 34. a4 {[%clk 0:00:51]}  bxa4 {[%clk 0:00:25]} 35. Bxa4 {[%clk 0:00:52]}  Rxd4 {[%clk 0:00:23]} 36. cxd4 {[%clk 0:00:53]}  Nf5 {[%clk 0:00:23]} 37. d5 {[%clk 0:00:52]}  Nxh4 {[%clk 0:00:20]} 38. f4 {[%clk 0:00:48]}  Kf6 {[%clk 0:00:20]} 39. Bd7 {[%clk 0:00:45]}  Ke7 {[%clk 0:00:20]} 40. Bc8 {[%clk 0:00:45]}  Nf3 {[%clk 0:00:20]} 41. Bxa6 {[%clk 0:00:43]}  Nd4 {[%clk 0:00:19]} 42. b5 {[%clk 0:00:41]}  Kd6 {[%clk 0:00:19]} 43. b6 {[%clk 0:00:41]}  Nf5 {[%clk 0:00:19]} 44. b7 {[%clk 0:00:41]}  Kc7 {[%clk 0:00:19]} 45. Kg2 {[%clk 0:00:37]}  Nd6 {[%clk 0:00:20]} 46. Kg3 {[%clk 0:00:30]}  Nxb7 {[%clk 0:00:20]} 47. f5 {[%clk 0:00:22]}  Nd6 {[%clk 0:00:20]} 48. fxg6 {[%clk 0:00:20]}  fxg6 {[%clk 0:00:20]} 49. Bd3 {[%clk 0:00:19]}  g5 {[%clk 0:00:19]} 50. Bg6 {[%clk 0:00:18]}  h4+ {[%clk 0:00:19]} 51. Kg4 {[%clk 0:00:17]}  Nc4 {[%clk 0:00:20]} 52. Be4 {[%clk 0:00:15]}  Kd6 {[%clk 0:00:18]} 53. Kxg5 {[%clk 0:00:14]}  h3 {[%clk 0:00:18]} 54. Kh4 {[%clk 0:00:13]}  h2 {[%clk 0:00:19]} 55. Kh3 {[%clk 0:00:13]}  h1=Q+ {[%clk 0:00:19]} 56. Bxh1 {[%clk 0:00:13]}  Nb6 {[%clk 0:00:17]} 57. Kg4 {[%clk 0:00:12]}  Ke5 {[%clk 0:00:18]} 58. f4+ {[%clk 0:00:11]}  Kf6 {[%clk 0:00:17]} 59. Be4 {[%clk 0:00:10]}  Nc4 {[%clk 0:00:17]} 60. Kf3 {[%clk 0:00:11]}  Nd6 {[%clk 0:00:17]} 61. Ke3 {[%clk 0:00:10]}  Ne8 {[%clk 0:00:18]} 62. Kd4 {[%clk 0:00:10]}  Nd6 {[%clk 0:00:18]} 63. Bd3 {[%clk 0:00:11]}  Ke7 {[%clk 0:00:18]} 64. Ke5 {[%clk 0:00:10]}  Nf7+ {[%clk 0:00:18]} 65. Kf5 {[%clk 0:00:11]}  Nd6+ {[%clk 0:00:18]} 66. Kg5 {[%clk 0:00:11]}  Nf7+ {[%clk 0:00:18]} 67. Kg6 {[%clk 0:00:11]}  Nd6 {[%clk 0:00:19]} 68. Kg7 {[%clk 0:00:11]}  Ne8+ {[%clk 0:00:18]} 69. Kh6 {[%clk 0:00:11]}  Nf6 {[%clk 0:00:18]} 70. Bc4 {[%clk 0:00:10]}  Kd6 {[%clk 0:00:18]} 71. Kg6 {[%clk 0:00:09]}  Ke7 {[%clk 0:00:17]} 72. d6+ {[%clk 0:00:09]}  Kxd6 {[%clk 0:00:15]} 73. Kxf6 {[%clk 0:00:09]}  Kc5 {[%clk 0:00:16]} 74. Ke5 {[%clk 0:00:10]}  Kxc4 {[%clk 0:00:16]} 75. f5 {[%clk 0:00:11]}  Kc5 {[%clk 0:00:16]} 76. f6 {[%clk 0:00:11]}  Kc6 {[%clk 0:00:17]} 77. f7 {[%clk 0:00:12]}  Kc5 {[%clk 0:00:17]} 78. f8=Q+ {[%clk 0:00:13]}  Kc4 {[%clk 0:00:18]} 79. Qd6 {[%clk 0:00:14]}  Kc3 {[%clk 0:00:18]} 80. Qd5 {[%clk 0:00:14]}  Kb4 {[%clk 0:00:17]} 81. Qd4+ {[%clk 0:00:15]}  Kb5 {[%clk 0:00:17]} 82. Qc3 {[%clk 0:00:15]}  Kb6 {[%clk 0:00:17]} 83. Kd6 {[%clk 0:00:16]}  Kb5 {[%clk 0:00:16]} 84. Qb3+ {[%clk 0:00:16]}  Ka5 {[%clk 0:00:16]} 85. Kc7 {[%clk 0:00:16]}  Ka6 {[%clk 0:00:15]} 86. Qb6# {[%clk 0:00:17]} 1-0


[Site "https://www.chess.com"]